bitfinex-derivatives/quotes_BTCF0:USTF0_20250724
["timestamp","ask_amount","ask_price","bid_price","bid_amount"]
[1753339562140,0.2905231,117500.0,117490.0,0.84047337]
[1753339562346,0.31093509,117500.0,117490.0,0.84047337]
[1753339562649,0.31093509,117500.0,117490.0,1.2398584]
[1753339563243,0.31093509,117500.0,117490.0,1.0697403]
[1753339563749,0.31093509,117500.0,117490.0,1.2398584]
[1753339564140,0.31093509,117500.0,117490.0,1.2726684]
[1753339564347,0.31093509,117500.0,117490.0,1.2826984]
[1753339564550,0.2905231,117500.0,117490.0,1.2826984]
[1753339564749,0.07789668,117500.0,117490.0,1.2826984]
[1753339564949,0.2275936,117500.0,117490.0,1.2826984]
[1753339566655,0.2416936,117500.0,117490.0,1.2826984]
[1753339567161,0.2416936,117500.0,117490.0,1.05343147]
[1753339567455,0.2416936,117500.0,117490.0,1.2826984]
[1753339567848,0.2416936,117500.0,117490.0,0.6531784]
[1753339568158,0.2416936,117500.0,117490.0,1.2813384]
[1753339569157,0.2416936,117500.0,117490.0,0.25379337]
[1753339569354,0.2908336,117500.0,117490.0,1.1107003]
[1753339569656,0.2908336,117500.0,117490.0,0.4550303]
[1753339569955,0.2908336,117500.0,117490.0,1.0827103]
[1753339570158,0.2908336,117500.0,117490.0,1.0679003]
[1753339570855,0.2908336,117500.0,117490.0,1.0827103]
[1753339571051,0.2908336,117500.0,117490.0,1.1107403]
[1753339571246,0.2908336,117500.0,117490.0,1.2808584]
[1753339572056,0.2908336,117500.0,117490.0,1.05159147]
[1753339572259,0.31128969,117500.0,117490.0,1.2808584]
[1753339572857,0.24804969,117500.0,117490.0,1.2808584]
[1753339573160,0.24804969,117500.0,117490.0,1.05159147]
[1753339573366,0.24804969,117500.0,117490.0,1.2808584]
[1753339573669,0.26214969,117500.0,117490.0,1.2808584]
[1753339574061,0.27878969,117500.0,117490.0,1.2808584]
[1753339574971,0.31128969,117500.0,117490.0,1.2808584]
[1753339575166,0.24743969,117500.0,117490.0,1.2808584]
[1753339576062,0.3164096,117500.0,117490.0,1.2808584]
[1753339579161,0.19255969,117500.0,117490.0,1.2808584]
[1753339579471,0.19255979,117500.0,117490.0,1.2808584]
[1753339579970,0.21509979,117500.0,117490.0,0.6531784]
[1753339580169,0.24743979,117500.0,117490.0,1.2802584]
[1753339581374,0.24743979,117500.0,117490.0,1.05099147]
[1753339581575,0.24743979,117500.0,117490.0,1.2802584]
[1753339581776,0.31067979,117500.0,117490.0,1.29744287]
[1753339583069,0.31067979,117500.0,117490.0,0.67036287]
[1753339583380,0.31067979,117500.0,117490.0,1.29744287]
[1753339583976,0.2902237,117500.0,117490.0,1.29744287]
[1753339585171,0.2902237,117500.0,117490.0,1.29768318]
[1753339586872,0.2902237,117500.0,117490.0,1.06841625]
[1753339587066,0.2902237,117500.0,117490.0,1.29768318]
[1753339588573,0.2902237,117500.0,117490.0,1.06841625]
[1753339588769,0.2902237,117500.0,117490.0,1.29768318]
[1753339589174,0.2902237,117500.0,117490.0,1.06841625]
[1753339589473,0.2902237,117500.0,117490.0,1.29768318]
[1753339590075,0.2902237,117500.0,117490.0,0.62776318]
[1753339590377,0.31068492,117500.0,117490.0,1.26953398]
[1753339590776,0.31068492,117500.0,117490.0,1.28753398]
[1753339590984,0.31068492,117500.0,117490.0,1.29756398]
[1753339591475,0.31068492,117500.0,117490.0,0.24318815]
[1753339591771,0.31068492,117500.0,117490.0,1.25472398]
[1753339592167,0.31068492,117500.0,117490.0,1.03895705]
[1753339592372,0.31068492,117500.0,117490.0,1.09810508]
[1753339592672,0.31068492,117500.0,117490.0,1.08460508]
[1753339592879,0.31068492,117500.0,117490.0,0.85533815]
[1753339593183,0.31068492,117500.0,117490.0,0.22837815]
[1753339593370,0.31068492,117500.0,117490.0,0.85533815]
[1753339593774,0.31068492,117500.0,117490.0,1.08460508]
[1753339593974,0.31068492,117500.0,117490.0,0.85533815]
[1753339594371,0.31068492,117500.0,117490.0,1.08460508]
[1753339594876,0.31068492,117500.0,117490.0,0.85533815]
[1753339595077,0.31068492,117500.0,117490.0,0.83205815]
[1753339595879,0.31068492,117500.0,117490.0,0.83195277]
[1753339596276,0.31068492,117500.0,117490.0,0.85308277]
[1753339596478,0.31068492,117500.0,117490.0,1.03670177]
[1753339596682,0.31068492,117500.0,117490.0,0.86658277]
[1753339597182,0.31068492,117500.0,117490.0,1.03670177]
[1753339597384,0.31068492,117500.0,117490.0,0.86658277]
[1753339597582,0.31068492,117500.0,117490.0,0.84915799]
[1753339597782,0.31068492,117500.0,117490.0,1.07842492]
[1753339597985,0.31068492,117500.0,117490.0,0.83565799]
[1753339598787,0.31068492,117500.0,117490.0,1.06492492]
[1753339599187,0.31068492,117500.0,117490.0,0.83565799]
[1753339600184,0.31068492,117500.0,117490.0,1.06492492]
[1753339600379,0.31068492,117500.0,117490.0,1.01915492]
[1753339601085,0.31068492,117500.0,117490.0,0.83567799]
[1753339601381,0.31068492,117500.0,117490.0,0.84917799]
[1753339603586,0.31068492,117500.0,117490.0,1.27659392]
[1753339603884,0.24744492,117500.0,117490.0,1.10647492]
[1753339604084,0.27715492,117500.0,117490.0,1.10647492]
[1753339604390,0.2566937,117500.0,117490.0,1.27659392]
[1753339604690,0.24731999,117500.0,117490.0,1.27659392]
[1753339604878,0.24731999,117500.0,117490.0,0.64971392]
[1753339604879,0.2269837,117500.0,117490.0,0.64971392]
[1753339605187,0.2269837,117500.0,117490.0,1.27655392]
[1753339605583,0.2412237,117500.0,117490.0,1.27655392]
[1753339605785,0.2566937,117500.0,117490.0,0.64971392]
[1753339605985,0.2566937,117500.0,117490.0,1.27655392]
[1753339606684,0.2566937,117500.0,117490.0,0.42044699]
[1753339606991,0.2566937,117500.0,117490.0,1.27651392]
[1753339607694,0.2876537,117500.0,117490.0,1.27651392]
[1753339609195,0.2269837,117500.0,117490.0,1.27651392]
[1753339609388,0.1946437,117500.0,117490.0,1.27651392]
[1753339609587,0.1946437,117500.0,117490.0,1.27647392]
[1753339609788,0.2270237,117500.0,117490.0,1.27647392]
[1753339610597,0.1721037,117500.0,117490.0,1.27647392]
[1753339612898,0.1721037,117500.0,117490.0,1.04720699]
[1753339613099,0.1721037,117500.0,117490.0,1.27647392]
[1753339613302,0.2288837,117500.0,117490.0,1.04720699]
[1753339613501,0.2288837,117500.0,117490.0,1.27647392]
[1753339613697,0.2288837,117500.0,117490.0,1.27643392]
[1753339614002,0.2895537,117500.0,117490.0,0.64971392]
[1753339614203,0.2895537,117500.0,117490.0,1.27639392]
[1753339614702,0.2895537,117500.0,117490.0,0.64971392]
[1753339614903,0.2895537,117500.0,117490.0,1.27639392]
[1753339615696,0.2895537,117500.0,117490.0,0.47959492]
[1753339615896,0.2895537,117500.0,117490.0,0.87696799]
[1753339616098,0.2895537,117500.0,117490.0,1.27635382]
[1753339618506,0.2895537,117500.0,117490.0,1.04708689]
[1753339618705,0.2895537,117500.0,117490.0,1.27635382]
[1753339619411,0.2995537,117500.0,117490.0,1.27635382]
[1753339621006,0.2895537,117500.0,117490.0,1.27635382]
[1753339621214,0.2585937,117500.0,117490.0,1.27635382]
[1753339621895,0.2585937,117500.0,117490.0,1.04708689]
[1753339622099,0.2288837,117500.0,117490.0,1.27635382]
[1753339622608,0.2288837,117500.0,117490.0,1.04708689]
[1753339622805,0.2288837,117500.0,117490.0,1.27635382]
[1753339623605,0.1721037,117500.0,117490.0,1.27635382]
[1753339624809,0.002,117500.0,117490.0,1.27635382]
[1753339625007,0.32425946,117510.0,117500.0,0.2154745]
[1753339625203,0.32425946,117510.0,117500.0,0.50187237]
[1753339625604,0.25954168,117510.0,117500.0,0.50187237]
[1753339626204,0.24220866,117510.0,117500.0,0.50287237]
[1753339626409,0.07310936,117510.0,117500.0,0.50287237]
[1753339628006,0.07310936,117510.0,117500.0,0.27360544]
[1753339628206,0.24319946,117510.0,117500.0,0.50287237]
[1753339628911,0.24319946,117510.0,117500.0,1.12931237]
[1753339629116,0.24319946,117510.0,117500.0,1.12927237]
[1753339629316,0.26663946,117510.0,117500.0,1.12927237]
[1753339629526,0.1975301,117510.0,117500.0,1.19040978]
[1753339630316,0.1975301,117510.0,117500.0,1.35141777]
[1753339630517,0.2313601,117510.0,117500.0,1.35141777]
[1753339630717,0.2313601,117510.0,117500.0,1.35133777]
[1753339630914,0.2461701,117510.0,117500.0,1.35133777]
[1753339632215,0.2461701,117510.0,117500.0,1.29020036]
[1753339632420,0.2313601,117510.0,117500.0,1.29020036]
[1753339633222,0.2313601,117510.0,117500.0,1.35133777]
[1753339634519,0.2313601,117510.0,117500.0,1.12207084]
[1753339634821,0.2313601,117510.0,117500.0,1.35133777]
[1753339635223,0.2313601,117510.0,117500.0,1.29020036]
[1753339636022,0.2313601,117510.0,117500.0,1.35133777]
[1753339636227,0.2461701,117510.0,117500.0,0.72501777]
[1753339636522,0.2946701,117510.0,117500.0,1.34318787]
[1753339636726,0.2946701,117510.0,117500.0,1.28205046]
[1753339637726,0.2946701,117510.0,117500.0,1.25041046]
[1753339637926,0.2946701,117510.0,117500.0,1.14144327]
[1753339638130,0.2946701,117510.0,117500.0,1.31154787]
[1753339638334,0.2946701,117510.0,117500.0,1.32518787]
[1753339638723,0.2946701,117510.0,117500.0,1.26405046]
[1753339639432,0.2946701,117510.0,117500.0,1.03478353]
[1753339639733,0.2946701,117510.0,117500.0,0.85103893]
[1753339640320,0.2946701,117510.0,117500.0,1.02114353]
[1753339640532,0.52393703,117510.0,117500.0,0.17946893]
[1753339640727,0.54257502,117510.0,117500.0,0.17946893]
[1753339641032,0.71278173,117510.0,117500.0,0.17946893]
[1753339641826,0.4835148,117510.0,117500.0,0.17946893]
[1753339642027,0.71278173,117510.0,117500.0,0.17946893]
[1753339642625,0.80278173,117510.0,117500.0,0.17946893]
[1753339643021,0.3133068,117510.0,117500.0,0.65585046]
[1753339643327,0.2946701,117510.0,117500.0,0.66388046]
[1753339643628,0.2946701,117510.0,117500.0,0.23847893]
[1753339644025,0.2946701,117510.0,117500.0,0.39494343]
[1753339644531,0.2946701,117510.0,117500.0,0.63785036]
[1753339644729,0.2946701,117510.0,117500.0,0.66388036]
[1753339644928,0.0927,117510.0,117500.0,1.28996036]
[1753339645130,0.2313601,117510.0,117500.0,1.06069343]
[1753339645436,0.02744,117510.0,117500.0,1.28996036]
[1753339645639,0.004,117510.0,117500.0,1.28996036]
[1753339645940,0.1740901,117510.0,117500.0,1.35109777]
[1753339648641,0.1740901,117510.0,117500.0,1.28996036]
[1753339649440,0.1975301,117510.0,117500.0,1.28996036]
[1753339650441,0.004,117510.0,117500.0,1.28996036]
[1753339650642,0.004,117510.0,117500.0,1.35109777]
[1753339651740,0.1740901,117510.0,117500.0,1.35109777]
[1753339651940,0.1740901,117510.0,117500.0,1.27249942]
[1753339652130,0.1981101,117510.0,117500.0,1.27249942]
[1753339652537,0.1981101,117510.0,117500.0,1.28975113]
[1753339653241,0.1740901,117510.0,117500.0,1.28975113]
[1753339654040,0.004,117510.0,117500.0,1.28975113]
[1753339654944,0.1740901,117510.0,117500.0,1.28959113]
[1753339655139,0.004,117510.0,117500.0,1.28959113]
[1753339655336,0.1740901,117510.0,117500.0,1.28959113]
[1753339655537,0.1740901,117510.0,117500.0,1.27233942]
[1753339655737,0.1740901,117510.0,117500.0,1.28951698]
[1753339655937,0.1740901,117510.0,117500.0,1.06025005]
[1753339656241,0.2303201,117510.0,117500.0,1.28951698]
[1753339656845,0.2303201,117510.0,117500.0,0.66359698]
[1753339657145,0.2303201,117510.0,117500.0,1.28951698]
[1753339657348,0.2597501,117510.0,117500.0,0.66359698]
[1753339657643,0.2597501,117510.0,117500.0,1.28951698]
[1753339657843,0.2921401,117510.0,117500.0,1.28951698]
[1753339658444,0.2921401,117510.0,117500.0,1.06025005]
[1753339658643,0.2921401,117510.0,117500.0,1.28148708]
[1753339659444,0.2921401,117510.0,117500.0,1.2828874]
[1753339659637,0.2921401,117510.0,117500.0,1.2909174]
[1753339664750,0.2921401,117510.0,117500.0,1.06165047]
[1753339664948,0.2921401,117510.0,117500.0,1.2909174]
[1753339666555,0.2597501,117510.0,117500.0,1.2909174]
[1753339666850,0.2303201,117510.0,117500.0,1.2909174]
[1753339667845,0.2446401,117510.0,117500.0,1.2909174]
[1753339668251,0.2921401,117510.0,117500.0,1.2909174]
[1753339669351,0.2921401,117510.0,117500.0,1.06165047]
[1753339669746,0.2921401,117510.0,117500.0,1.2909174]
[1753339670345,0.2921401,117510.0,117500.0,0.22595587]
[1753339670552,0.3021401,117510.0,117500.0,0.22595587]
[1753339670753,0.3021401,117510.0,117500.0,0.85163587]
[1753339670956,0.3021401,117510.0,117500.0,1.0809028]
[1753339671255,0.53140703,117510.0,117500.0,0.80626587]
[1753339671455,0.32173592,117510.0,117500.0,0.80626587]
[1753339671754,0.65173592,117510.0,117500.0,0.18058587]
[1753339672454,0.65173592,117510.0,117500.0,0.41833248]
[1753339672655,0.65173592,117510.0,117500.0,0.42019261]
[1753339673155,0.31173592,117510.0,117500.0,0.42019261]
[1753339674153,0.32173592,117510.0,117500.0,0.42019261]
[1753339674748,0.31173592,117510.0,117500.0,0.22634568]
[1753339674946,0.31173592,117510.0,117500.0,0.45561261]
[1753339675649,0.31173592,117510.0,117500.0,0.47361261]
[1753339675854,0.31173592,117510.0,117500.0,0.48842261]
[1753339676156,0.31173592,117510.0,117500.0,0.47042261]
[1753339676356,0.31173592,117510.0,117500.0,0.45561261]
[1753339676557,0.31173592,117510.0,117500.0,0.24115568]
[1753339676759,0.31173592,117510.0,117500.0,0.47049659]
[1753339677052,0.31173592,117510.0,117500.0,0.47057058]
[1753339677455,0.31173592,117510.0,117500.0,0.45576058]
[1753339677658,0.31173592,117510.0,117500.0,0.22649365]
[1753339677851,0.31173592,117510.0,117500.0,0.45576058]
[1753339679066,0.2921401,117510.0,117500.0,0.45576058]
[1753339680460,0.2921401,117510.0,117500.0,0.47057058]
[1753339680753,0.2921401,117510.0,117500.0,0.22649365]
[1753339681159,0.2921401,117510.0,117500.0,0.20392365]
[1753339681360,0.52140703,117510.0,117500.0,0.18119365]
[1753339681859,0.2921401,117510.0,117500.0,0.18119365]
[1753339682354,0.31173865,117510.0,117500.0,0.18119365]
[1753339682761,0.54100558,117510.0,117500.0,0.18119365]
[1753339684558,0.31173865,117510.0,117500.0,0.16401609]
[1753339684754,0.54100558,117510.0,117500.0,0.16401609]
[1753339685449,0.31173865,117510.0,117500.0,0.16401609]
[1753339687162,0.54100558,117510.0,117500.0,0.16401609]
[1753339687558,1.16648558,117510.0,117500.0,0.16401609]
[1753339688862,0.93721865,117510.0,117500.0,0.16401609]
[1753339689061,1.16648558,117510.0,117500.0,0.16401609]
[1753339689861,1.51648558,117510.0,117500.0,0.16401609]
[1753339690262,1.10721865,117510.0,117500.0,0.16401609]
[1753339690454,1.33648558,117510.0,117500.0,0.16401609]
[1753339692158,1.10721865,117510.0,117500.0,0.16401609]
[1753339692458,1.33648558,117510.0,117500.0,0.16401609]
[1753339692856,1.16648558,117510.0,117500.0,0.16401609]
[1753339693057,0.54100558,117510.0,117500.0,0.16401609]
[1753339693555,1.16640558,117510.0,117500.0,0.16401609]
[1753339693751,1.16640558,117510.0,117500.0,0.17317609]
[1753339693961,0.31173865,117510.0,117500.0,0.17317609]
[1753339694172,0.93717865,117510.0,117500.0,0.17317609]
[1753339696660,0.31173865,117510.0,117500.0,0.20895609]
[1753339696867,0.31173865,117510.0,117500.0,0.43822302]
[1753339697057,0.31173865,117510.0,117500.0,0.45200302]
[1753339697257,0.31173865,117510.0,117500.0,0.47000302]
[1753339697763,0.31173865,117510.0,117500.0,0.64813752]
[1753339698059,0.31173865,117510.0,117500.0,0.41887059]
[1753339698264,0.31173865,117510.0,117500.0,0.64813752]
[1753339698464,0.31173865,117510.0,117500.0,0.41887059]
[1753339698666,0.31173865,117510.0,117500.0,0.47803302]
[1753339698869,0.31173865,117510.0,117500.0,0.47000302]
[1753339699158,0.31173865,117510.0,117500.0,0.22273609]
[1753339700153,0.31173865,117510.0,117500.0,0.17317609]
[1753339700356,0.54100558,117510.0,117500.0,0.17317609]
[1753339700864,0.31173865,117510.0,117500.0,0.17317609]
[1753339701665,0.31173865,117510.0,117500.0,0.18602609]
[1753339702454,0.31173865,117510.0,117500.0,0.17317609]
[1753339702455,0.54100558,117510.0,117500.0,0.17317609]
[1753339702658,0.31173865,117510.0,117500.0,0.18602609]
[1753339702858,0.31173865,117510.0,117500.0,0.20895609]
[1753339703063,0.54100558,117510.0,117500.0,0.20895609]
[1753339704066,0.31173865,117510.0,117500.0,0.20895609]
[1753339704263,0.54100558,117510.0,117500.0,0.20895609]
[1753339705766,0.31173865,117510.0,117500.0,0.20895609]
[1753339707169,0.54100558,117510.0,117500.0,0.20895609]
[1753339708270,0.31173865,117510.0,117500.0,0.20895609]
[1753339708468,0.54100558,117510.0,117500.0,0.20895609]
[1753339709167,0.54100558,117510.0,117500.0,0.17317609]
[1753339710071,0.54100558,117510.0,117500.0,0.16401609]
[1753339710868,0.31173865,117510.0,117500.0,0.16401609]
[1753339711069,0.54100558,117510.0,117500.0,0.16401609]
[1753339711269,0.31173865,117510.0,117500.0,0.16401609]
[1753339711464,0.54100558,117510.0,117500.0,0.16401609]
[1753339713173,0.48379804,117510.0,117500.0,0.16401609]
[1753339713873,0.65585743,117510.0,117500.0,0.16401609]
[1753339714178,0.48379804,117510.0,117500.0,0.16401609]
[1753339715473,0.65585743,117510.0,117500.0,0.16401609]
[1753339715669,0.31173865,117510.0,117500.0,0.16401609]
[1753339715876,0.48379804,117510.0,117500.0,0.16401609]
[1753339717180,0.54116045,117510.0,117500.0,0.16401609]
[1753339718774,1.16616045,117510.0,117500.0,0.16401609]
[1753339720081,1.53616045,117510.0,117500.0,0.16401609]
[1753339724474,1.30673865,117510.0,117500.0,0.16401609]
[1753339724778,1.53616045,117510.0,117500.0,0.16401609]
[1753339725281,1.53616045,117510.0,117500.0,0.12321979]
[1753339725872,1.53616045,117510.0,117500.0,0.08977739]
[1753339726180,1.53616045,117510.0,117500.0,0.05248339]
[1753339727081,1.53616045,117510.0,117500.0,0.02995119]
[1753339728687,0.2167941,117480.0,117470.0,0.50135244]
[1753339728887,0.2886941,117480.0,117470.0,0.50135244]
[1753339729882,0.2886941,117480.0,117470.0,0.50335244]
[1753339730185,0.2886941,117480.0,117470.0,0.50635244]
[1753339730186,0.2896941,117480.0,117470.0,0.50635244]
[1753339731187,0.2896941,117480.0,117470.0,0.4903168]
[1753339731790,0.2896941,117480.0,117470.0,0.65132479]
[1753339732291,0.2280841,117480.0,117470.0,0.65132479]
[1753339735090,0.2430341,117480.0,117470.0,0.65132479]
[1753339735594,1.7430341,117480.0,117470.0,0.65132479]
[1753339739394,1.7430341,117480.0,117470.0,0.59398815]
[1753339741204,1.7430341,117480.0,117470.0,0.42190299]
[1753339741397,1.7430341,117480.0,117470.0,0.59398815]
[1753339741793,1.7430341,117480.0,117470.0,0.56795815]
[1753339742191,1.7430341,117480.0,117470.0,0.58595815]
[1753339742394,1.7430341,117480.0,117470.0,0.76607331]
[1753339743797,1.7430341,117480.0,117470.0,0.42190299]
[1753339743999,1.7430341,117480.0,117470.0,0.76607331]
[1753339746304,1.7280841,117480.0,117470.0,0.76607331]
[1753339748006,0.2280841,117480.0,117470.0,0.76607331]
[1753339748703,0.2892541,117480.0,117470.0,0.76607331]
[1753339748908,0.2892541,117480.0,117470.0,1.39023331]
[1753339749307,0.2892541,117480.0,117470.0,0.76607331]
[1753339749506,0.2892541,117480.0,117470.0,1.39023331]
[1753339749706,0.2992541,117480.0,117470.0,0.42190299]
[1753339749907,0.2992541,117480.0,117470.0,0.76607331]
[1753339750102,0.2992541,117480.0,117470.0,1.39019331]
[1753339750298,0.2992541,117480.0,117470.0,1.21810815]
[1753339750497,0.2992541,117480.0,117470.0,1.39019331]
[1753339751405,0.2992541,117480.0,117470.0,1.36416331]
[1753339751612,0.2992541,117480.0,117470.0,1.39019331]
[1753339751909,0.2992541,117480.0,117470.0,1.19207815]
[1753339752408,0.2992541,117480.0,117470.0,1.21007815]
[1753339753611,0.2992541,117480.0,117470.0,0.22572799]
[1753339753810,0.2992541,117480.0,117470.0,0.34800315]
[1753339754106,0.94496868,117480.0,117470.0,0.16600799]
[1753339754304,0.655139,117480.0,117470.0,0.16600799]
[1753339754503,0.93496868,117480.0,117470.0,0.16600799]
[1753339754804,1.279139,117480.0,117470.0,0.16600799]
[1753339755205,1.279139,117480.0,117470.0,0.16400799]
[1753339755402,0.48305384,117480.0,117470.0,0.33709315]
[1753339755704,0.93492868,117480.0,117470.0,0.38100315]
[1753339755898,0.31096868,117480.0,117470.0,0.38100315]
[1753339756106,0.2892541,117480.0,117470.0,0.87344799]
[1753339756301,0.31105241,117480.0,117470.0,1.04553315]
[1753339756507,0.27907241,117480.0,117470.0,1.38476691]
[1753339756707,0.24988241,117480.0,117470.0,1.38676691]
[1753339756908,1.74988241,117480.0,117470.0,1.38676691]
[1753339757210,0.21644241,117480.0,117470.0,1.38676691]
[1753339757601,0.24856241,117480.0,117470.0,1.38676691]
[1753339758106,0.26253241,117480.0,117470.0,1.38676691]
[1753339758511,0.2407341,117480.0,117470.0,1.38676691]
[1753339759212,0.30973045,117480.0,117470.0,1.10187868]
[1753339759406,0.30973009,117480.0,117470.0,1.10187868]
[1753339759913,0.2879341,117480.0,117470.0,1.10187868]
[1753339761914,0.2879341,117480.0,117470.0,0.46988868]
[1753339762110,0.30972897,117480.0,117470.0,1.10171868]
[1753339762314,0.30972897,117480.0,117470.0,0.47791868]
[1753339762511,0.30972897,117480.0,117470.0,1.10171868]
[1753339762811,0.30972897,117480.0,117470.0,0.16400799]
[1753339763008,0.53915966,117480.0,117470.0,0.78780799]
[1753339763214,0.30972897,117480.0,117470.0,0.16400799]
[1753339763416,0.53915966,117480.0,117470.0,0.16400799]
[1753339763616,0.30972897,117480.0,117470.0,0.16400799]
[1753339768116,0.93348897,117480.0,117470.0,0.16400799]
[1753339768314,0.93348897,117480.0,117470.0,0.39343868]
[1753339768621,0.93348897,117480.0,117470.0,0.16400799]
[1753339768822,0.93348897,117480.0,117470.0,0.17364799]
[1753339769223,0.93352897,117480.0,117470.0,0.40307868]
[1753339769423,0.30972897,117480.0,117470.0,0.40307868]
[1753339769623,0.30972897,117480.0,117470.0,0.43734868]
[1753339769823,0.30972897,117480.0,117470.0,0.46988868]
[1753339770020,0.37886936,117480.0,117470.0,0.41863709]
[1753339770219,0.37886936,117480.0,117470.0,0.64806778]
[1753339770821,0.37886936,117480.0,117470.0,0.47791868]
[1753339771122,0.38886936,117480.0,117470.0,0.24848799]
[1753339771323,0.38886936,117480.0,117470.0,0.47791868]
[1753339771519,0.38886936,117480.0,117470.0,0.46988868]
[1753339773229,0.38886936,117480.0,117470.0,0.64003778]
[1753339773429,0.38886936,117480.0,117470.0,0.64806778]
[1753339773629,0.38886936,117480.0,117470.0,1.27182778]
[1753339773831,0.38886936,117480.0,117470.0,1.10167868]
[1753339774023,0.38886936,117480.0,117470.0,0.87224799]
[1753339774426,0.38886936,117480.0,117470.0,1.10167868]
[1753339774822,0.37886936,117480.0,117470.0,1.10167868]
[1753339776028,1.87886936,117480.0,117470.0,1.10167868]
[1753339776736,1.87886936,117480.0,117470.0,0.87224799]
[1753339776928,1.87886936,117480.0,117470.0,1.10167868]
[1753339777128,1.87886936,117480.0,117470.0,1.09364868]
[1753339777525,1.87886936,117480.0,117470.0,1.07564868]
[1753339777725,1.88886936,117480.0,117470.0,1.07564868]
[1753339778126,1.88886936,117480.0,117470.0,0.84621799]
[1753339778327,1.88886936,117480.0,117470.0,0.40307868]
[1753339778837,1.88886936,117480.0,117470.0,0.43830868]
[1753339780626,1.87886936,117480.0,117470.0,0.45191868]
[1753339781028,1.87886936,117480.0,117470.0,0.20887799]
[1753339781223,1.87886936,117480.0,117470.0,0.43830868]
[1753339781831,1.80972897,117480.0,117470.0,0.20887799]
[1753339782033,1.80972897,117480.0,117470.0,0.40307868]
[1753339782735,1.80972897,117480.0,117470.0,0.43830868]
[1753339783127,1.80972897,117480.0,117470.0,0.20887799]
[1753339783433,1.80972897,117480.0,117470.0,0.17364799]
[1753339783734,1.80972897,117480.0,117470.0,0.40307868]
[1753339784533,1.80972897,117480.0,117470.0,0.43830868]
[1753339784734,1.87658133,117480.0,117470.0,0.43830868]
[1753339789440,1.87658133,117480.0,117470.0,0.64809778]
[1753339790039,1.85478646,117480.0,117470.0,0.64809778]
[1753339791436,1.86478646,117480.0,117470.0,0.64809778]
[1753339791739,1.79361646,117480.0,117470.0,0.64809778]
[1753339792043,1.76149646,117480.0,117470.0,0.64809778]
[1753339792244,1.79584646,117480.0,117470.0,0.64809778]
[1753339792541,1.80984646,117480.0,117470.0,0.64809778]
[1753339793335,1.7429941,117480.0,117470.0,0.64809778]
[1753339793536,0.2429941,117480.0,117470.0,0.64809778]
[1753339793938,1.7429941,117480.0,117470.0,0.64809778]
[1753339794942,1.501,117480.0,117470.0,0.87752847]
[1753339795443,0.2266459,117500.0,117490.0,0.2906403]
[1753339795639,0.24876301,117500.0,117490.0,0.9142003]
[1753339795945,0.2266459,117500.0,117490.0,0.9142003]
[1753339796346,0.2751259,117500.0,117490.0,0.9142003]
[1753339796545,0.2751259,117500.0,117490.0,1.14363099]
[1753339796740,0.2761259,117500.0,117490.0,1.14363099]
[1753339796946,0.2761259,117500.0,117490.0,1.14463099]
[1753339796947,0.2781259,117500.0,117490.0,1.14463099]
[1753339797548,0.3363559,117500.0,117490.0,1.14463099]
[1753339798250,0.40368384,117500.0,117490.0,1.14463099]
[1753339799751,0.40368384,117500.0,117490.0,1.15930656]
[1753339799949,0.40368384,117500.0,117490.0,0.92987587]
[1753339800151,0.40368384,117500.0,117490.0,1.32031455]
[1753339802360,0.35992564,117500.0,117490.0,1.31867505]
[1753339803157,0.2453477,117500.0,117490.0,1.31867505]
[1753339803554,0.2427919,117510.0,117500.0,0.2892764]
[1753339803750,0.3040402,117520.0,117510.0,0.1700919]
[1753339804055,0.1859764,117500.0,117490.0,0.47921089]
[1753339804259,0.2900564,117500.0,117490.0,1.29071238]
[1753339804654,0.2900564,117500.0,117490.0,1.34784238]
[1753339804854,0.11995,117500.0,117490.0,1.34784238]
[1753339805055,0.290055,117500.0,117490.0,1.34784238]
[1753339805255,0.11995,117500.0,117490.0,0.72324238]
[1753339805456,1.790055,117500.0,117490.0,1.34864238]
[1753339805655,1.61995,117500.0,117490.0,1.34864238]
[1753339805856,1.5,117500.0,117490.0,1.34764238]
[1753339806561,1.7428055,117500.0,117490.0,1.34828238]
[1753339806756,1.52379,117500.0,117490.0,1.34828238]
[1753339806956,1.6701055,117500.0,117490.0,1.34828238]
[1753339807156,1.7281455,117500.0,117490.0,1.11885169]
[1753339807356,1.7428055,117500.0,117490.0,1.34828238]
[1753339807657,1.7428055,117500.0,117490.0,0.75401662]
[1753339807858,1.7428055,117500.0,117490.0,1.15070593]
[1753339808058,1.7428055,117500.0,117490.0,1.38013662]
[1753339808260,1.7428055,117500.0,117490.0,0.75401662]
[1753339808462,1.7428055,117500.0,117490.0,1.38017662]
[1753339809258,1.5727,117500.0,117490.0,1.38017662]
[1753339809661,1.7428056,117500.0,117490.0,1.38045662]
[1753339810061,1.5727,117500.0,117490.0,1.38045662]
[1753339810562,1.5737,117500.0,117490.0,1.38245662]
[1753339811264,1.7438056,117500.0,117490.0,1.38245662]
[1753339812057,1.7438056,117500.0,117490.0,0.75601662]
[1753339812262,1.7438056,117500.0,117490.0,0.66191479]
[1753339812457,1.7438056,117500.0,117490.0,1.28827479]
[1753339812861,1.7438056,117500.0,117490.0,1.28835479]
[1753339813060,1.7438056,117500.0,117490.0,1.25419479]
[1753339813265,1.7438056,117500.0,117490.0,1.26867019]
[1753339813967,1.7438056,117500.0,117490.0,1.30283019]
[1753339814162,1.7438056,117500.0,117490.0,1.28835479]
[1753339815169,1.7438056,117500.0,117490.0,0.66191479]
[1753339815361,1.7438056,117500.0,117490.0,0.45764819]
[1753339815566,1.7438056,117500.0,117490.0,1.03571819]
[1753339815767,1.7438056,117500.0,117490.0,0.8062875]
[1753339815967,1.7438056,117500.0,117490.0,1.03571819]
[1753339816169,1.7438056,117500.0,117490.0,1.20583879]
[1753339817972,1.7438056,117500.0,117490.0,1.03571819]
[1753339818168,1.7438056,117500.0,117490.0,1.20583869]
[1753339820361,1.76565894,117500.0,117490.0,1.20583869]
[1753339820570,1.76565894,117500.0,117490.0,1.26296869]
[1753339820872,1.76565894,117500.0,117490.0,1.29155541]
[1753339821170,1.7438061,117500.0,117490.0,1.29155541]
[1753339821376,0.02479,117500.0,117490.0,1.29155541]
[1753339821567,0.001,117500.0,117490.0,1.29155541]
[1753339822366,0.001,117500.0,117490.0,1.46177941]
[1753339823464,0.001,117500.0,117490.0,1.23234872]
[1753339823667,0.001,117500.0,117490.0,1.46177941]
[1753339824168,1.5,117510.0,117500.0,0.2181561]
[1753339824367,1.52187027,117510.0,117500.0,0.51870679]
[1753339824673,1.5,117510.0,117500.0,0.51870679]
[1753339824863,1.52187029,117510.0,117500.0,0.68891479]
[1753339825068,1.5,117510.0,117500.0,0.68891479]
[1753339825372,1.52187681,117510.0,117500.0,0.68891479]
[1753339825575,1.52387681,117510.0,117500.0,0.68991479]
[1753339826069,1.52487681,117510.0,117500.0,0.4604841]
[1753339826374,1.52487681,117510.0,117500.0,0.85092278]
[1753339826573,1.52487681,117510.0,117500.0,0.62149209]
[1753339826773,1.52487681,117510.0,117500.0,0.85092278]
[1753339827074,1.503,117510.0,117500.0,0.85092278]
[1753339829375,1.6730917,117510.0,117500.0,0.85092278]
[1753339829569,1.6968817,117510.0,117500.0,0.85092278]